fUST/lending_fUST_20250615
["ID","MTS","AMOUNT","RATE_DAILY","PERIOD"]
[365795699,1749917443312,-460.0,0.00021917,4]
[365795700,1749917443322,-816.54,0.00021917,4]
[365795701,1749917443332,-460.0,0.00021917,4]
[365795702,1749917443342,-460.0,0.00021917,4]
[365795703,1749917443351,-402.98247575,0.00021917,4]
[365795704,1749917443360,-442.87257805,0.00021965,2]
[365795705,1749917443368,-160.0,0.00021969,3]
[365795706,1749917443378,-170.0,0.00022,2]
[365795707,1749917443387,-582.9665213,0.00022003,6]
[365795708,1749917443396,-582.9665213,0.00022107,6]
[365795709,1749917443405,-500.0,0.00022173,2]
[365795710,1749917443414,-500.0,0.00022173,2]
[365795712,1749917443424,-500.0,0.00022173,2]
[365795713,1749917443433,-500.0,0.00022173,2]
[365795714,1749917443442,-500.0,0.00022173,2]
[365795715,1749917443452,-500.0,0.00022173,2]
[365795717,1749917443461,-500.0,0.00022191,2]
[365795719,1749917443470,-560.0,0.00022191,4]
[365795720,1749917443479,-460.0,0.00022191,4]
[365795721,1749917443488,-360.0,0.00022191,4]
[365795722,1749917443497,-419.19416445,0.00022191,4]
[365795723,1749917443506,-400.0,0.00022191,4]
[365795724,1749917443516,-460.0,0.00022191,4]
[365795725,1749917443525,-460.0,0.00022191,4]
[365795726,1749917443535,-410.0,0.00022191,4]
[365795727,1749917443544,-460.0,0.00022191,4]
[365795728,1749917443554,-346.09345987,0.00022191,4]
[365795729,1749917443563,-460.0,0.00022191,4]
[365795730,1749917443572,-334.28555124,0.00022191,4]
[365795731,1749917443582,-379.99840326,0.00022191,4]
[365795732,1749917443592,-460.0,0.00022191,4]
[365795733,1749917443602,-460.0,0.00022191,4]
[365795734,1749917443611,-370.0,0.00022191,4]
[365795735,1749917443621,-460.0,0.00022191,4]
[365795736,1749917443631,-590.0,0.00022191,4]
[365795737,1749917443642,-460.0,0.00022191,4]
[365795738,1749917443651,-460.0,0.00022191,4]
[365795739,1749917443661,-460.0,0.00022191,4]
[365795740,1749917443670,-460.0,0.00022191,4]
[365795741,1749917443680,-520.93746372,0.00022191,4]
[365795742,1749917443690,-480.98855003,0.00022191,4]
[365795743,1749917443699,-460.0,0.00022191,4]
[365795744,1749917443708,-460.0,0.00022191,4]
[365795745,1749917443718,-460.0,0.00022191,4]
[365795746,1749917443727,-400.0,0.00022191,4]
[365795747,1749917443736,-460.0,0.00022191,4]
[365795748,1749917443746,-178.97890036,0.00022191,4]
[365795749,1749917443755,-448.02097966,0.00022191,4]
[365795750,1749917443766,-316.49676492,0.00022191,4]
[365795751,1749917443775,-460.0,0.00022191,4]
[365795752,1749917443785,-460.0,0.00022191,4]
[365795753,1749917443795,-460.0,0.00022191,4]
[365795754,1749917443804,-410.0,0.00022191,4]
[365795755,1749917443813,-460.0,0.00022191,4]
[365795756,1749917443823,-460.0,0.00022191,4]
[365795757,1749917443833,-460.0,0.00022191,4]
[365795758,1749917443843,-460.0,0.00022191,4]
[365795759,1749917443853,-460.0,0.00022191,4]
[365795760,1749917443863,-460.0,0.00022191,4]
[365795761,1749917443873,-460.0,0.00022191,2]
[365795762,1749917443884,-460.0,0.00022191,4]
[365795763,1749917443894,-460.0,0.00022191,4]
[365795764,1749917443905,-340.0,0.00022191,4]
[365795765,1749917443914,-460.0,0.00022191,4]
[365795766,1749917443924,-460.0,0.00022191,4]
[365795767,1749917443934,-373.05866487,0.00022191,4]
[365795768,1749917443943,-460.0,0.00022191,4]
[365795769,1749917443952,-460.0,0.00022191,4]
[365795770,1749917443962,-460.0,0.00022191,4]
[365795771,1749917443971,-601.25,0.00022191,4]
[365795772,1749917443981,-460.0,0.00022191,4]
[365795773,1749917443990,-460.0,0.00022191,4]
[365795774,1749917444000,-460.0,0.00022191,4]
[365795775,1749917444009,-205.00614391,0.00022191,4]
[365795776,1749917444018,-460.0,0.00022191,4]
[365795777,1749917444028,-460.0,0.00022191,4]
[365795778,1749917444037,-460.0,0.00022191,4]
[365795789,1749917444183,-460.0,0.00022191,4]
[365795791,1749917444193,-327.75166967,0.00022191,4]
[365795793,1749917444203,-460.0,0.00022191,4]
[365795795,1749917444213,-380.0,0.00022191,4]
[365795797,1749917444223,-460.0,0.00022191,4]
[365795799,1749917444232,-460.0,0.00022191,4]
[365795801,1749917444242,-460.0,0.00022191,4]
[365795803,1749917444252,-460.0,0.00022191,4]
[365795805,1749917444261,-460.0,0.00022191,4]
[365795807,1749917444271,-460.0,0.00022191,4]
[365795809,1749917444280,-460.0,0.00022191,4]
[365795811,1749917444290,-460.0,0.00022191,4]
[365795814,1749917444300,-460.0,0.00022191,4]
[365795815,1749917444310,-401.98555472,0.00022191,4]
[365795816,1749917444320,-460.0,0.00022191,4]
[365795817,1749917444330,-460.0,0.00022191,4]
[365795818,1749917444340,-460.0,0.00022191,4]
[365795819,1749917444350,-460.0,0.00022191,4]
[365795820,1749917444359,-420.0,0.00022191,4]
[365795821,1749917444369,-328.39040511,0.00022191,4]
[365795822,1749917444378,-400.0,0.00022191,4]
[365795823,1749917444388,-460.0,0.00022191,4]
[365795825,1749917444398,-410.0,0.00022191,4]
[365795826,1749917444407,-460.0,0.00022191,4]
[365795827,1749917444417,-460.0,0.00022191,4]
[365795828,1749917444427,-320.0,0.00022191,4]
[365795829,1749917444437,-420.0,0.00022191,4]
[365795830,1749917444447,-460.0,0.00022191,4]
[365795832,1749917444457,-460.0,0.00022191,4]
[365795833,1749917444467,-460.0,0.00022191,4]
[365795834,1749917444477,-460.0,0.00022191,4]
[365795835,1749917444487,-460.0,0.00022191,4]
[365795836,1749917444497,-460.0,0.00022191,4]
[365795837,1749917444507,-460.0,0.00022191,4]
[365795838,1749917444516,-420.0,0.00022191,4]
[365795839,1749917444526,-460.0,0.00022191,4]
[365795840,1749917444536,-460.0,0.00022191,4]
[365795841,1749917444545,-460.0,0.00022191,4]
[365795842,1749917444555,-460.0,0.00022191,4]
[365795843,1749917444564,-460.0,0.00022191,4]
[365795844,1749917444574,-460.0,0.00022191,4]
[365795845,1749917444584,-460.0,0.00022191,4]
[365795846,1749917444593,-460.0,0.00022191,4]
[365795847,1749917444602,-460.0,0.00022191,4]
[365795848,1749917444613,-296.18006444,0.00022191,4]
[365795849,1749917444623,-460.0,0.00022191,4]
[365795850,1749917444633,-460.0,0.00022191,4]
[365795851,1749917444642,-460.0,0.00022191,4]
[365795852,1749917444653,-460.0,0.00022191,2]
[365795853,1749917444663,-460.0,0.00022191,4]
[365795854,1749917444674,-460.0,0.00022191,4]
[365795855,1749917444684,-271.98435187,0.00022191,4]
[365795856,1749917444694,-460.0,0.00022191,4]
[365795857,1749917444703,-460.0,0.00022191,4]
[365795858,1749917444713,-279.53875173,0.00022191,4]
[365795859,1749917444723,-460.0,0.00022191,4]
[365795860,1749917444733,-460.0,0.00022191,4]
[365795861,1749917444742,-460.0,0.00022191,4]
[365795862,1749917444752,-400.0,0.00022191,4]
[365795863,1749917444763,-460.0,0.00022191,4]
[365795864,1749917444773,-460.0,0.00022191,4]
[365795865,1749917444783,-460.0,0.00022191,4]
[365795866,1749917444792,-460.0,0.00022191,4]
[365795867,1749917444802,-460.0,0.00022191,4]
[365795868,1749917444812,-460.0,0.00022191,4]
[365795869,1749917444822,-460.0,0.00022191,4]
[365795870,1749917444831,-460.0,0.00022191,4]
[365795871,1749917444842,-380.0,0.00022191,4]
[365795872,1749917444852,-2480.54,0.00022191,4]
[365795873,1749917444862,-460.0,0.00022191,4]
[365795874,1749917444872,-460.0,0.00022191,4]
[365795875,1749917444882,-460.0,0.00022191,4]
[365795876,1749917444892,-649.92,0.00022191,4]
[365795877,1749917444902,-460.0,0.00022191,4]
[365795878,1749917444912,-1012.69,0.00022191,4]
[365795879,1749917444922,-402.56191319,0.00022191,4]
[365795880,1749917444932,-460.0,0.00022191,4]
[365795881,1749917444942,-460.0,0.00022191,4]
[365795882,1749917444952,-460.0,0.00022191,4]
[365795883,1749917444961,-460.0,0.00022191,4]
[365795884,1749917444971,-460.0,0.00022191,4]
[365795885,1749917444980,-460.0,0.00022191,4]
[365795886,1749917444989,-460.0,0.00022191,4]
[365795887,1749917444999,-460.0,0.00022191,4]
[365795888,1749917445009,-252.25,0.00022191,4]
[365795889,1749917445019,-465.33,0.00022191,4]
[365795890,1749917445028,-617.49,0.00022191,4]
[365795891,1749917445038,-460.0,0.00022191,4]
[365795892,1749917445047,-460.0,0.00022191,4]
[365795893,1749917445057,-460.0,0.00022191,4]
[365795894,1749917445067,-460.0,0.00022191,4]
[365795895,1749917445077,-460.0,0.00022191,4]
[365795896,1749917445088,-354.89766306,0.00022191,4]
[365795897,1749917445099,-460.0,0.00022191,4]
[365795898,1749917445109,-430.0,0.00022191,4]
[365795899,1749917445119,-460.0,0.00022191,4]
[365795900,1749917445128,-460.0,0.00022191,4]
[365795901,1749917445138,-420.0,0.00022191,4]
[365795902,1749917445150,-296.09505606,0.00022191,4]
[365795903,1749917445159,-749.09,0.00022191,4]
[365795904,1749917445168,-460.0,0.00022191,4]
[365795905,1749917445179,-460.0,0.00022191,4]
[365795906,1749917445190,-460.0,0.00022191,4]
[365795907,1749917445199,-460.0,0.00022191,4]
[365795908,1749917445208,-460.0,0.00022191,4]
[365795909,1749917445217,-460.0,0.00022191,4]
[365795910,1749917445226,-460.0,0.00022191,4]
[365795911,1749917445236,-460.0,0.00022191,4]
[365795912,1749917445245,-460.0,0.00022191,4]
[365795913,1749917445255,-460.0,0.00022191,4]
[365795914,1749917445265,-460.0,0.00022191,4]
[365795915,1749917445275,-480.16,0.00022191,4]
[365795916,1749917445284,-460.0,0.00022191,4]
[365795917,1749917445294,-460.0,0.00022191,4]
[365795918,1749917445303,-460.0,0.00022191,4]
[365795919,1749917445312,-484.22,0.00022191,4]
[365795920,1749917445322,-460.0,0.00022191,4]
[365795921,1749917445331,-460.0,0.00022191,4]
[365795922,1749917445342,-1402.17,0.00022191,4]
[365795923,1749917445351,-2509.29,0.00022191,4]
[365795924,1749917445361,-440.0,0.00022191,4]
[365795925,1749917445370,-249.25624937,0.00022191,4]
[365795926,1749917445380,-460.0,0.00022191,4]
[365795927,1749917445389,-460.0,0.00022191,4]
[365795928,1749917445399,-466.96312873,0.00022191,4]
[365795929,1749917445409,-480.88,0.00022191,4]
[365795930,1749917445419,-460.0,0.00022191,4]
[365795931,1749917445428,-460.0,0.00022191,4]
[365795932,1749917445438,-460.0,0.00022191,4]
[365795933,1749917445448,-460.0,0.00022191,4]
[365795934,1749917445457,-460.0,0.00022191,4]
[365795935,1749917445467,-2710.13,0.00022191,4]
[365795936,1749917445477,-2178.11,0.00022191,4]
[365795937,1749917445486,-460.0,0.00022191,4]
[365795938,1749917445495,-1253.41,0.00022191,4]
[365795939,1749917445505,-460.0,0.00022191,4]
[365795940,1749917445514,-460.0,0.00022191,4]
[365795941,1749917445525,-460.0,0.00022191,4]
[365795942,1749917445535,-2862.66,0.00022191,4]
[365795943,1749917445544,-1709.23,0.00022191,4]
[365795944,1749917445553,-460.0,0.00022191,4]
[365795945,1749917445563,-460.0,0.00022191,4]
[365795946,1749917445572,-460.0,0.00022191,4]
[365795947,1749917445581,-477.81,0.00022191,4]
[365795948,1749917445591,-460.0,0.00022191,4]
[365795949,1749917445600,-460.0,0.00022191,4]
[365795950,1749917445609,-460.0,0.00022191,4]
[365795951,1749917445619,-460.0,0.00022191,4]
[365795952,1749917445628,-460.0,0.00022191,4]
[365795953,1749917445638,-460.0,0.00022191,4]
[365795954,1749917445647,-1990.39,0.00022191,4]
[365795955,1749917445657,-460.0,0.00022191,4]
[365795956,1749917445666,-590.15354752,0.00022191,4]
[365795957,1749917445676,-460.0,0.00022191,4]
[365795958,1749917445686,-460.0,0.00022191,4]
[365795959,1749917445695,-460.0,0.00022191,4]
[365795960,1749917445705,-460.0,0.00022191,4]
[365795961,1749917445714,-460.0,0.00022191,4]
[365795962,1749917445724,-460.0,0.00022191,4]
[365795963,1749917445734,-460.0,0.00022191,2]
[365795964,1749917445743,-460.0,0.00022191,4]
[365795965,1749917445754,-460.0,0.00022191,4]
[365795966,1749917445763,-1408.95,0.00022191,4]
[365795968,1749917445773,-460.0,0.00022191,4]
[365795969,1749917445783,-460.0,0.00022191,4]
[365795970,1749917445793,-460.0,0.00022191,4]
[365795971,1749917445802,-1218.93,0.00022191,4]
[365795972,1749917445812,-460.0,0.00022191,4]
[365795973,1749917445821,-460.0,0.00022191,4]
[365795974,1749917445831,-1961.21,0.00022191,4]
[365795975,1749917445842,-374.00149886,0.00022191,4]
[365795976,1749917445852,-460.0,0.00022191,4]
[365795977,1749917445862,-672.05,0.00022191,4]
[365795978,1749917445872,-460.0,0.00022191,4]
[365795979,1749917445882,-460.0,0.00022191,4]
[365795980,1749917445892,-460.0,0.00022191,4]
[365795981,1749917445902,-1037.98,0.00022191,4]
[365795982,1749917445912,-1260.56,0.00022191,4]
[365795983,1749917445921,-460.0,0.00022191,4]
[365795984,1749917445932,-589.35,0.00022191,4]
[365795985,1749917445942,-460.0,0.00022191,4]
[365795986,1749917445952,-460.0,0.00022191,4]
[365795987,1749917445962,-460.0,0.00022191,4]
[365795988,1749917445972,-460.0,0.00022191,4]
[365795989,1749917445982,-460.0,0.00022191,4]
[365795990,1749917445992,-816.54,0.00022191,4]
[365795991,1749917446001,-582.9665213,0.0002221,6]
[365795992,1749917446011,-500.0,0.0002225,2]
[365795993,1749917446020,-442.87257805,0.00022269,2]
[365795994,1749917446030,-447.17023461,0.00022278,2]
[365795995,1749917446039,-420.0,0.00022287,2]
[365795996,1749917446049,-420.0,0.00022287,2]
[365795997,1749917446057,-420.0,0.00022287,2]
[365795998,1749917446067,-420.0,0.00022287,2]
[365795999,1749917446076,-582.9665213,0.00022314,7]
[365796000,1749917446086,-1680.0,0.00022393,2]
[365796002,1749917446096,-582.9665213,0.00022417,7]
[365796004,1749917446108,-460.0,0.00022465,4]
[365796006,1749917446118,-460.0,0.00022465,4]
[365796008,1749917446127,-460.0,0.00022465,4]
[365796010,1749917446136,-347.34881959,0.00022465,4]
[365796012,1749917446147,-460.0,0.00022465,4]
[365796014,1749917446156,-460.0,0.00022465,4]
[365796016,1749917446166,-460.0,0.00022465,4]
[365796018,1749917446176,-460.0,0.00022465,4]
[365796020,1749917446185,-410.0,0.00022465,4]
[365796022,1749917446194,-460.0,0.00022465,4]
[365796024,1749917446203,-592.26007752,0.00022465,4]
[365796026,1749917446213,-460.0,0.00022465,4]
[365796028,1749917446223,-460.0,0.00022465,4]
[365796030,1749917446235,-460.0,0.00022465,4]
[365796032,1749917446246,-460.0,0.00022465,4]
[365796034,1749917446255,-460.0,0.00022465,4]
[365796036,1749917446265,-460.0,0.00022465,4]
[365796038,1749917446274,-460.0,0.00022465,4]
[365796040,1749917446284,-460.0,0.00022465,4]
[365796042,1749917446293,-460.0,0.00022465,4]
[365796044,1749917446304,-330.0,0.00022465,2]
[365796047,1749917446313,-460.0,0.00022465,4]
[365796049,1749917446323,-460.0,0.00022465,4]
[365796051,1749917446333,-460.0,0.00022465,4]
[365796052,1749917446343,-460.0,0.00022465,4]
[365796055,1749917446353,-460.0,0.00022465,4]
[365796057,1749917446362,-460.0,0.00022465,4]
[365796058,1749917446372,-601.25,0.00022465,4]
[365796060,1749917446382,-460.0,0.00022465,4]
[365796062,1749917446392,-326.70531427,0.00022465,4]
[365796065,1749917446401,-460.0,0.00022465,4]
[365796067,1749917446411,-340.0,0.00022465,4]
[365796069,1749917446420,-300.0,0.00022465,4]
[365796070,1749917446429,-400.0,0.00022465,4]
[365796072,1749917446439,-360.0,0.00022465,4]
[365796075,1749917446448,-460.0,0.00022465,4]
[365796076,1749917446458,-460.0,0.00022465,4]
[365796078,1749917446467,-460.0,0.00022465,4]
[365796080,1749917446476,-430.0,0.00022465,4]
[365796082,1749917446486,-460.0,0.00022465,4]
[365796084,1749917446495,-460.0,0.00022465,4]
[365796086,1749917446504,-460.0,0.00022465,4]
[365796088,1749917446514,-330.0,0.00022465,4]
[365796090,1749917446523,-460.0,0.00022465,4]
[365796092,1749917446534,-293.27911492,0.00022465,4]
[365796094,1749917446544,-460.0,0.00022465,4]
[365796096,1749917446554,-542.76118036,0.00022465,4]
[365796098,1749917446564,-410.0,0.00022465,4]
[365796100,1749917446574,-460.0,0.00022465,4]
[365796102,1749917446583,-320.0,0.00022465,4]
[365796104,1749917446593,-460.0,0.00022465,4]
[365796106,1749917446603,-460.0,0.00022465,4]
[365796108,1749917446613,-480.0,0.00022465,4]
[365796110,1749917446624,-460.0,0.00022465,4]
[365796113,1749917446634,-510.0,0.00022465,4]
[365796114,1749917446644,-420.0,0.00022465,4]
[365796115,1749917446654,-460.0,0.00022465,4]
[365796116,1749917446664,-310.0,0.00022465,4]
[365796117,1749917446674,-460.0,0.00022465,4]
[365796118,1749917446684,-460.0,0.00022465,4]
[365796119,1749917446693,-460.0,0.00022465,4]
[365796120,1749917446703,-460.0,0.00022465,4]
[365796121,1749917446713,-460.0,0.00022465,4]
[365796122,1749917446723,-460.0,0.00022465,4]
[365796123,1749917446732,-460.0,0.00022465,4]
[365796124,1749917446742,-460.0,0.00022465,4]
[365796125,1749917446752,-460.0,0.00022465,4]
[365796126,1749917446761,-411.93621007,0.00022465,2]
[365796127,1749917446771,-460.0,0.00022465,4]
[365796128,1749917446780,-460.0,0.00022465,4]
[365796129,1749917446790,-460.0,0.00022465,4]
[365796130,1749917446800,-460.0,0.00022465,4]
[365796131,1749917446810,-460.0,0.00022465,4]
[365796132,1749917446819,-460.0,0.00022465,4]
[365796133,1749917446829,-601.60694409,0.00022465,4]
[365796134,1749917446838,-291.25242609,0.00022465,4]
[365796135,1749917446847,-460.0,0.00022465,4]
[365796136,1749917446857,-460.0,0.00022465,4]
[365796137,1749917446867,-262.8358406,0.00022465,4]
[365796138,1749917446877,-460.0,0.00022465,4]
[365796139,1749917446886,-460.0,0.00022465,4]
[365796140,1749917446895,-460.0,0.00022465,4]
[365796141,1749917446905,-250.0,0.00022465,4]
[365796142,1749917446915,-2480.54,0.00022465,4]
[365796143,1749917446925,-460.0,0.00022465,4]
[365796144,1749917446934,-460.0,0.00022465,4]
[365796145,1749917446943,-460.0,0.00022465,4]
[365796146,1749917446953,-649.92,0.00022465,4]
[365796147,1749917446962,-460.0,0.00022465,4]
[365796148,1749917446977,-1012.69,0.00022465,4]
[365796149,1749917446987,-460.0,0.00022465,4]
[365796150,1749917446996,-460.0,0.00022465,4]
[365796151,1749917447005,-460.0,0.00022465,4]
[365796152,1749917447014,-460.0,0.00022465,4]
[365796153,1749917447024,-460.0,0.00022465,4]
[365796154,1749917447033,-460.0,0.00022465,4]
[365796155,1749917447043,-460.0,0.00022465,4]
[365796156,1749917447053,-169.22602945,0.00022465,4]
[365796157,1749917447063,-465.33,0.00022465,4]
[365796158,1749917447073,-617.49,0.00022465,4]
[365796159,1749917447083,-460.0,0.00022465,4]
[365796160,1749917447094,-285.41635084,0.00022465,4]
[365796161,1749917447106,-460.0,0.00022465,4]
[365796162,1749917447115,-330.0,0.00022465,4]
[365796163,1749917447125,-597.44037117,0.00022465,4]
[365796164,1749917447134,-460.0,0.00022465,4]
[365796165,1749917447144,-460.0,0.00022465,4]
[365796166,1749917447153,-460.0,0.00022465,4]
[365796167,1749917447163,-749.09,0.00022465,4]
[365796168,1749917447172,-460.0,0.00022465,4]
[365796169,1749917447181,-460.0,0.00022465,4]
[365796170,1749917447191,-460.0,0.00022465,4]
[365796171,1749917447200,-460.0,0.00022465,4]
[365796172,1749917447209,-460.0,0.00022465,4]
[365796173,1749917447219,-460.0,0.00022465,4]
[365796174,1749917447228,-460.0,0.00022465,4]
[365796175,1749917447238,-460.0,0.00022465,4]
[365796176,1749917447247,-460.0,0.00022465,4]
[365796177,1749917447258,-460.0,0.00022465,4]
[365796178,1749917447268,-460.0,0.00022465,4]
[365796179,1749917447277,-480.16,0.00022465,4]
[365796180,1749917447287,-460.0,0.00022465,4]
[365796181,1749917447297,-460.0,0.00022465,4]
[365796182,1749917447306,-460.0,0.00022465,4]
[365796183,1749917447316,-484.22,0.00022465,4]
[365796184,1749917447326,-159.57021451,0.00022465,4]
[365796185,1749917447335,-460.0,0.00022465,4]
[365796186,1749917447345,-1402.17,0.00022465,4]
[365796187,1749917447354,-2509.29,0.00022465,4]
[365796188,1749917447364,-340.0,0.00022465,4]
[365796189,1749917447374,-480.88,0.00022465,4]
[365796190,1749917447384,-460.0,0.00022465,4]
[365796191,1749917447394,-460.0,0.00022465,4]
[365796192,1749917447403,-460.0,0.00022465,4]
[365796193,1749917447412,-460.0,0.00022465,4]
[365796194,1749917447422,-2710.13,0.00022465,4]
[365796195,1749917447432,-2178.11,0.00022465,4]
[365796196,1749917447441,-460.0,0.00022465,4]
[365796197,1749917447451,-1253.41,0.00022465,4]
[365796198,1749917447461,-460.0,0.00022465,4]
[365796199,1749917447471,-460.0,0.00022465,4]
[365796200,1749917447480,-2862.66,0.00022465,4]
[365796201,1749917447490,-1709.23,0.00022465,4]
[365796202,1749917447499,-460.0,0.00022465,4]
[365796203,1749917447508,-460.0,0.00022465,4]
[365796204,1749917447518,-460.0,0.00022465,4]
[365796205,1749917447527,-477.81,0.00022465,4]
[365796206,1749917447537,-460.0,0.00022465,4]
[365796207,1749917447547,-460.0,0.00022465,4]
[365796208,1749917447556,-460.0,0.00022465,4]
[365796209,1749917447566,-460.0,0.00022465,4]
[365796210,1749917447575,-460.0,0.00022465,4]
[365796211,1749917447584,-360.0,0.00022465,4]
[365796212,1749917447595,-1990.39,0.00022465,4]
[365796213,1749917447605,-460.0,0.00022465,4]
[365796214,1749917447747,-460.0,0.00022465,4]
[365796215,1749917447758,-460.0,0.00022465,4]
[365796216,1749917447767,-460.0,0.00022465,4]
[365796217,1749917447777,-460.0,0.00022465,4]
[365796218,1749917447786,-460.0,0.00022465,4]
[365796219,1749917447796,-460.0,0.00022465,2]
[365796220,1749917447806,-460.0,0.00022465,4]
[365796221,1749917447816,-460.0,0.00022465,4]
[365796222,1749917447826,-1408.95,0.00022465,4]
[365796223,1749917447835,-460.0,0.00022465,4]
[365796224,1749917447846,-460.0,0.00022465,4]
[365796225,1749917447855,-460.0,0.00022465,4]
[365796226,1749917447865,-1218.93,0.00022465,4]
[365796227,1749917447875,-460.0,0.00022465,4]
[365796228,1749917447884,-460.0,0.00022465,4]
[365796229,1749917447894,-1961.21,0.00022465,4]
[365796230,1749917447904,-460.0,0.00022465,4]
[365796231,1749917447914,-672.05,0.00022465,4]
[365796232,1749917447923,-460.0,0.00022465,4]
[365796233,1749917447933,-360.03618205,0.00022465,4]
[365796234,1749917447942,-606.62531999,0.00022465,4]
[365796235,1749917447951,-1037.98,0.00022465,4]
[365796236,1749917447961,-1260.56,0.00022465,4]
[365796237,1749917447970,-460.0,0.00022465,4]
[365796238,1749917447979,-589.35,0.00022465,4]
[365796239,1749917447988,-348.36172699,0.00022465,4]
[365796240,1749917447998,-460.0,0.00022465,4]
[365796241,1749917448007,-310.0,0.00022465,4]
[365796242,1749917448016,-460.0,0.00022465,4]
[365796243,1749917448026,-460.0,0.00022465,4]
[365796244,1749917448036,-816.54,0.00022465,4]
[365796245,1749917448046,-753.65,0.000225,7]
[365796246,1749917448055,-582.9665213,0.00022521,7]
[365796247,1749917448065,-1919.89663419,0.00022558,2]
[365796248,1749917448075,-1236.0,0.00022602,4]
[365796249,1749917448085,-271.97510472,0.00022602,4]
[365796250,1749917448098,-500.0,0.00022602,4]
[365796251,1749917448117,-500.0,0.00022602,4]
[365796252,1749917448138,-151.0,0.00022602,4]
[365796253,1749917448158,-151.0,0.00022602,4]
[365796254,1749917448179,-500.0,0.00022602,4]
[365796255,1749917448189,-500.0,0.00022602,4]
[365796256,1749917448199,-500.0,0.00022602,4]
[365796257,1749917448209,-500.0,0.00022602,4]
[365796258,1749917448218,-247.09869764,0.00022602,4]
[365796259,1749917448228,-582.9665213,0.00022624,7]
[365796260,1749917448237,-1236.0,0.00022629,4]
[365796261,1749917448247,-500.0,0.00022629,4]
[365796262,1749917448257,-500.0,0.00022629,4]
[365796263,1749917448266,-151.0,0.00022629,4]
[365796264,1749917448276,-259.93812939,0.00022629,4]
[365796265,1749917448285,-500.0,0.00022629,4]
[365796266,1749917448295,-500.0,0.00022629,4]
[365796267,1749917448304,-500.0,0.00022629,4]
[365796268,1749917448315,-500.0,0.00022629,4]
[365796269,1749917448324,-160.0,0.00022635,2]
[365796270,1749917448334,-12533.30537164,0.00022635,2]
[365796271,1749917448344,-160.0,0.00022635,2]
[365796272,1749917448353,-160.0,0.00022635,2]
[365796273,1749917448363,-160.0,0.00022635,2]
[365796274,1749917448372,-160.0,0.00022635,2]
[365796275,1749917448382,-213.28201367,0.00022635,2]
[365796276,1749917448392,-424.40141186,0.00022635,2]
[365796277,1749917448401,-160.0,0.00022636,2]
[365796278,1749917448411,-1236.0,0.00022657,4]
[365796279,1749917448420,-500.0,0.00022657,4]
[365796280,1749917448429,-233.065671,0.00022657,4]
[365796281,1749917448438,-500.0,0.00022657,4]
[365796282,1749917448448,-297.15774951,0.00022657,4]
[365796283,1749917448457,-372.16588728,0.00022657,4]
[365796284,1749917448466,-500.0,0.00022657,4]